fUST/lending_fUST_20250421
["ID","MTS","AMOUNT","RATE_DAILY","PERIOD"]
[358540059,1745241044995,-1500.0,0.00038571,5]
[358540060,1745241045005,-1500.0,0.00038571,5]
[358540061,1745241045015,-1500.0,0.00038571,5]
[358540062,1745241045025,-1500.0,0.00038571,5]
[358540063,1745241045034,-4000.0,0.000386,40]
[358540064,1745241045044,-800.0,0.00038785,7]
[358540065,1745241045053,-151.0,0.000388,13]
[358540066,1745241045063,-800.0,0.00038832,7]
[358540067,1745241045072,-650.0,0.00038871,5]
[358540068,1745241045082,-1000.0,0.00039,10]
[358540069,1745241045092,-312.84021666,0.00039,30]
[358540070,1745241045102,-9990.25505456,0.00039,120]
[358540071,1745241045113,-281.0,0.00039,2]
[358540072,1745241045122,-281.0,0.00039,2]
[358540073,1745241045132,-204.0,0.0003902,30]
[358540074,1745241045141,-1277.08210141,0.00039072,15]
[358540075,1745241045152,-1001.6420464,0.000391,2]
[358540076,1745241045161,-1000.0,0.000391,2]
[358540077,1745241045171,-1000.0,0.000391,2]
[358540078,1745241045180,-1000.0,0.000391,2]
[358540079,1745241045190,-1000.0,0.000391,2]
[358540080,1745241045200,-1000.0,0.000391,2]
[358540081,1745241045210,-1000.0,0.000391,2]
[358540082,1745241045221,-1000.0,0.000391,2]
[358540083,1745241045231,-1000.0,0.000391,2]
[358540084,1745241045245,-1000.0,0.000391,2]
[358540085,1745241045254,-151.0,0.0003949,14]
[358540086,1745241045264,-500.0,0.000395,2]
[358540087,1745241045275,-11181.66,0.000395,30]
[358540088,1745241045285,-151.0,0.00039501,14]
[358540089,1745241045295,-277.921653,0.00039501,14]
[358540090,1745241045304,-151.0,0.00039501,14]
[358540091,1745241045317,-151.0,0.00039501,14]
[358540092,1745241045327,-1067.62970625,0.0003958,120]
[358540093,1745241045337,-4009.34859217,0.000396,50]
[358540094,1745241045347,-1594.25527078,0.00039726,4]
[358540095,1745241045360,-157.0640115,0.00039735,30]
[358540096,1745241045370,-341.2662298,0.00039735,30]
[358540097,1745241045380,-157.0640115,0.00039735,30]
[358540098,1745241045390,-1201.3361257,0.00039742,30]
[358540099,1745241045400,-1500.0,0.00039743,5]
[358540100,1745241045410,-1500.0,0.00039743,5]
[358540101,1745241045421,-1610.43569902,0.0003979,120]
[358540102,1745241045430,-200.0,0.000398,41]
[358540103,1745241045440,-200.0,0.000398,41]
[358540104,1745241045451,-151.0,0.000398,14]
[358540105,1745241045461,-151.0,0.000398,14]
[358540106,1745241045471,-151.0,0.000398,14]
[358540107,1745241045481,-151.0,0.000398,14]
[358540108,1745241045490,-167.694079,0.000398,14]
[358540109,1745241045500,-151.0,0.000398,14]
[358540110,1745241045509,-151.0,0.000398,14]
[358540111,1745241045519,-800.0,0.000398,120]
[358540112,1745241045529,-202.11740191,0.000398,14]
[358540113,1745241045539,-166.0,0.000398,14]
[358540114,1745241045549,-210.37729578,0.000398,14]
[358540115,1745241045559,-166.0,0.000398,14]
[358540116,1745241045568,-162.89753949,0.000398,14]
[358540117,1745241045578,-154.0,0.000398,14]
[358540118,1745241045588,-164.82908989,0.000398,14]
[358540119,1745241045597,-359.0,0.000398,14]
[358540120,1745241045607,-359.0,0.000398,14]
[358540121,1745241045616,-359.0,0.000398,14]
[358540122,1745241045626,-359.0,0.000398,14]
[358540123,1745241045635,-319.0,0.000398,14]
[358540124,1745241045645,-359.0,0.000398,14]
[358540125,1745241045655,-319.0,0.000398,14]
[358540126,1745241045664,-359.0,0.000398,14]
[358540127,1745241045673,-319.0,0.000398,14]
[358540128,1745241045682,-359.0,0.000398,14]
[358540129,1745241045691,-319.0,0.000398,14]
[358540130,1745241045701,-319.0,0.000398,14]
[358540131,1745241045710,-359.0,0.000398,14]
[358540132,1745241045719,-319.0,0.000398,14]
[358540133,1745241045729,-359.0,0.000398,14]
[358540134,1745241045738,-319.0,0.000398,14]
[358540135,1745241045748,-319.0,0.000398,14]
[358540136,1745241045758,-359.0,0.000398,14]
[358540137,1745241045771,-359.0,0.000398,14]
[358540138,1745241045784,-319.0,0.000398,14]
[358540139,1745241045798,-359.0,0.000398,14]
[358540140,1745241045810,-319.0,0.000398,14]
[358540141,1745241045823,-359.0,0.000398,14]
[358540142,1745241045834,-319.0,0.000398,14]
[358540145,1745241045845,-359.0,0.000398,14]
[358540149,1745241045859,-319.0,0.000398,14]
[358540152,1745241045871,-359.0,0.000398,14]
[358540155,1745241045883,-319.0,0.000398,14]
[358540157,1745241045895,-359.0,0.000398,14]
[358540159,1745241045907,-319.0,0.000398,14]
[358540161,1745241045921,-319.0,0.000398,14]
[358540163,1745241045933,-359.0,0.000398,14]
[358540165,1745241045946,-319.0,0.000398,14]
[358540166,1745241045959,-359.0,0.000398,14]
[358540167,1745241045973,-319.0,0.000398,14]
[358540168,1745241045986,-359.0,0.000398,14]
[358540169,1745241045998,-319.0,0.000398,14]
[358540170,1745241046010,-359.0,0.000398,14]
[358540171,1745241046022,-228.19450111,0.000398,14]
[358540172,1745241046034,-193.76615751,0.000398,14]
[358540173,1745241046045,-151.0,0.000398,14]
[358540174,1745241046059,-228.182589,0.000398,14]
[358540175,1745241046071,-1277.08210141,0.00039831,15]
[358540176,1745241046083,-151.0,0.00039868,14]
[358540177,1745241046094,-258.650111,0.0003987,14]
[358540178,1745241046105,-258.650111,0.0003987,14]
[358540179,1745241046116,-151.0,0.0003987,14]
[358540180,1745241046126,-151.0,0.0003987,14]
[358540181,1745241046138,-274.602248,0.0003987,14]
[358540182,1745241046148,-151.0,0.0003987,14]
[358540183,1745241046160,-151.0,0.0003987,14]
[358540184,1745241046172,-151.0,0.0003987,14]
[358540185,1745241046184,-151.0,0.0003987,14]
[358540186,1745241046196,-151.0,0.0003987,14]
[358540187,1745241046207,-151.0,0.0003987,14]
[358540188,1745241046219,-151.0,0.0003987,14]
[358540189,1745241046232,-359.352126,0.0003987,14]
[358540192,1745241046249,-359.352126,0.0003987,14]
[358540194,1745241046261,-294.339405,0.0003987,14]
[358540196,1745241046275,-500.0,0.00039873,5]
[358540198,1745241046286,-363.65457012,0.00039878,2]
[358540201,1745241046296,-305.68065314,0.00039878,2]
[358540203,1745241046307,-500.0,0.00039879,2]
[358540205,1745241046322,-500.0,0.00039879,2]
[358540207,1745241046333,-249122.00189193,0.0003988,15]
[358540210,1745241046440,-1812.86628956,0.0003988,15]
[358540211,1745241046531,-392.8911394,0.00023091,2]
[358540212,1745241046544,-6638.20299203,0.00023091,2]
[358540213,1745241046555,-500.0,0.00023091,2]
[358540214,1745241046566,-500.0,0.00023091,2]
[358540215,1745241046577,-500.0,0.00023091,2]
[358540216,1745241046588,-500.0,0.00023365,2]
[358540217,1745241046599,-151.0,0.00027475,7]
[358540218,1745241046610,-151.0,0.00028297,7]
[358540219,1745241046623,-151.0,0.000343,14]
[358540220,1745241046635,-400.0,0.00034308,2]
[358540221,1745241046647,-203.014475,0.0003987,14]
[358540222,1745241046658,-18614.77757237,0.0003988,15]
[358540223,1745241046669,-152.537558,0.0003988,14]
[358540224,1745241046681,-153.629746,0.0003988,14]
[358540225,1745241046691,-151.0,0.0003988,14]
[358540226,1745241046703,-151.0,0.0003988,14]
[358540227,1745241046715,-151.0,0.0003988,14]
[358540228,1745241046726,-151.0,0.0003988,14]
[358540230,1745241046735,-151.0,0.0003988,14]
[358540231,1745241046744,-151.0,0.0003988,14]
[358540232,1745241046753,-151.0,0.0003988,14]
[358540233,1745241046763,-154.944577,0.0003988,14]
[358540234,1745241046772,-151.0,0.0003988,14]
[358540235,1745241046782,-151.0,0.0003988,14]
[358540236,1745241046792,-258.650111,0.0003988,14]
[358540237,1745241046801,-258.650111,0.0003988,14]
[358540238,1745241046811,-151.0,0.0003988,14]
[358540239,1745241046820,-151.0,0.0003988,14]
[358540240,1745241046830,-151.0,0.0003988,14]
[358540241,1745241046839,-157.322081,0.0003988,14]
[358540242,1745241046847,-151.0,0.0003988,14]
[358540243,1745241046857,-151.0,0.0003988,14]
[358540244,1745241046867,-151.0,0.0003988,14]
[358540245,1745241046876,-151.0,0.0003988,14]
[358540246,1745241046886,-151.0,0.0003988,14]
[358540248,1745241046895,-282.261904,0.0003988,14]
[358540249,1745241046905,-151.0,0.0003988,14]
[358540250,1745241046915,-359.352126,0.0003988,14]
[358540251,1745241046923,-359.352126,0.0003988,14]
[358540252,1745241046933,-151.0,0.0003988,14]
[358540254,1745241046942,-164.609278,0.0003988,14]
[358540255,1745241046951,-164.609278,0.0003988,14]
[358540257,1745241046960,-1429.533757,0.0003988,2]
[358540258,1745241046970,-1429.533757,0.0003988,2]
[358540260,1745241046979,-151.0,0.0003988,14]
[358540262,1745241046989,-956.907576,0.0003988,14]
[358540264,1745241046999,-151.0,0.0003988,14]
[358540266,1745241047009,-956.907576,0.0003988,14]
[358540273,1745241047175,-151.0,0.0003988,14]
[358540274,1745241047185,-151.0,0.0003988,14]
[358540275,1745241047195,-500.13796693,0.00039899,2]
[358540276,1745241047204,-500.0,0.00039899,2]
[358540277,1745241047214,-11851.28114813,0.000399,30]
[358540278,1745241047243,-500.0,0.00023091,2]
[358540279,1745241047253,-420.43852988,0.000399,30]
[358540281,1745241093826,303.35407859,6.8e-07,2]
[358540407,1745242232399,-300.0,0.00019999,2]
[358540409,1745242232409,-300.0,0.00019999,2]
[358540410,1745242232419,-39058.89418818,0.0002,3]
[358540411,1745242232429,-160.0,0.0002,3]
[358540412,1745242232439,-500.0,0.00020143,2]
[358540413,1745242232448,-500.0,0.00020556,2]
[358540414,1745242232458,-500.0,0.00020571,2]
[358540415,1745242232467,-500.0,0.00020573,2]
[358540416,1745242232477,-425.69403391,0.000209,3]
[358540417,1745242232487,-500.0,0.00021371,2]
[358540418,1745242232496,-500.0,0.00021562,2]
[358540419,1745242232506,-500.0,0.00021623,2]
[358540420,1745242232515,-425.6940338,0.00021762,3]
[358540421,1745242232525,-420.0,0.00021777,2]
[358540422,1745242232534,-726.8334137,0.00021864,2]
[358540423,1745242232544,-420.0,0.00021881,2]
[358540424,1745242232554,-810.65536178,0.00021899,2]
[358540425,1745242232563,-500.0,0.00021917,2]
[358540426,1745242232575,-506.93709484,0.00021917,2]
[358540427,1745242232585,-157.53,0.00021961,2]
[358540428,1745242232595,-500.0,0.00021969,2]
[358540429,1745242232604,-500.0,0.00021973,2]
[358540430,1745242232614,-500.0,0.00021973,2]
[358540431,1745242232625,-500.0,0.00021973,2]
[358540432,1745242232635,-500.0,0.00021973,2]
[358540433,1745242232646,-500.0,0.00021973,2]
[358540434,1745242232659,-500.0,0.00021973,2]
[358540435,1745242232668,-500.0,0.00021973,2]
[358540436,1745242232677,-500.0,0.00021973,2]
[358540437,1745242232686,-500.0,0.00021973,2]
[358540438,1745242232695,-500.0,0.00021973,2]
[358540439,1745242232704,-500.0,0.00021973,2]
[358540440,1745242232714,-500.0,0.00021973,2]
[358540441,1745242232723,-300.0,0.00021973,2]
[358540442,1745242232733,-500.0,0.00021973,2]
[358540443,1745242232742,-500.0,0.00021998,2]
[358540444,1745242232752,-500.0,0.00021998,2]
[358540445,1745242232762,-502.4637224,0.00021998,2]
[358540446,1745242232771,-500.0,0.00021998,2]
[358540447,1745242232781,-465.01211294,0.00021998,2]
[358540448,1745242232791,-2842.37,0.00021998,2]
[358540449,1745242232801,-500.0,0.00021998,2]
[358540450,1745242232810,-144.54716855,0.00021998,2]
[358540457,1745242238476,-600.11283145,0.00021998,2]
[358540458,1745242238486,-500.0,0.00021998,2]
[358540459,1745242238495,-500.0,0.00021998,2]
[358540460,1745242238504,-193.50391301,0.00021999,2]
[358540461,1745242238514,-500.0,0.00021999,2]
[358540462,1745242238523,-318.0471373,0.00021999,2]
[358540463,1745242238533,-500.0,0.00021999,2]
[358540464,1745242238542,-500.0,0.00021999,2]
[358540465,1745242238551,-500.0,0.00021999,2]
[358540466,1745242238561,-320.1466392,0.00021999,2]
[358540467,1745242238570,-500.0,0.00021999,2]
[358540468,1745242238582,-500.0,0.00021999,2]
[358540469,1745242238593,-500.0,0.00021999,2]
[358540470,1745242238603,-500.0,0.00021999,2]
[358540471,1745242238611,-500.0,0.00021999,2]
[358540472,1745242238620,-500.0,0.00021999,2]
[358540473,1745242238631,-500.0,0.00021999,2]
[358540474,1745242238640,-599.41,0.00021999,2]
[358540475,1745242238650,-500.0,0.00021999,2]
[358540476,1745242238661,-500.0,0.00021999,2]
[358540477,1745242238670,-500.0,0.00021999,2]
[358540478,1745242238680,-500.0,0.00021999,2]
[358540479,1745242238690,-562.37,0.00021999,2]
[358540480,1745242238699,-500.0,0.00021999,2]
[358540481,1745242238708,-625.63,0.00021999,2]
[358540482,1745242238718,-500.0,0.00021999,2]
[358540483,1745242238727,-500.0,0.00021999,2]
[358540484,1745242238736,-500.0,0.00021999,2]
[358540485,1745242238746,-500.0,0.00021999,2]
[358540486,1745242238756,-500.0,0.00021999,2]
[358540487,1745242238766,-500.0,0.00021999,2]
[358540488,1745242238776,-586.48,0.00021999,2]
[358540489,1745242238786,-437.32651802,0.00021999,2]
[358540490,1745242238795,-500.0,0.00021999,2]
[358540491,1745242238804,-2667.39,0.00021999,2]
[358540492,1745242238814,-500.0,0.00021999,2]
[358540493,1745242238823,-500.0,0.00021999,2]
[358540494,1745242238832,-500.0,0.00021999,2]
[358540495,1745242238841,-500.0,0.00021999,2]
[358540496,1745242238851,-500.0,0.00021999,2]
[358540497,1745242238860,-1121.15,0.00021999,2]
[358540498,1745242238869,-500.0,0.00021999,2]
[358540499,1745242238878,-524.79,0.00021999,2]
[358540500,1745242238887,-500.0,0.00021999,2]
[358540501,1745242238898,-500.0,0.00021999,2]
[358540502,1745242238908,-500.0,0.00021999,2]
[358540503,1745242238917,-500.0,0.00021999,2]
[358540504,1745242238927,-500.0,0.00021999,2]
[358540505,1745242238937,-611.4,0.00021999,2]
[358540506,1745242238946,-500.0,0.00021999,2]
[358540507,1745242238956,-500.0,0.00021999,2]
[358540508,1745242238965,-500.22,0.00021999,2]
[358540509,1745242238975,-500.0,0.00021999,2]
[358540510,1745242238985,-500.0,0.00021999,2]
[358540511,1745242238994,-500.0,0.00021999,2]
[358540512,1745242239003,-234.83550028,0.00021999,2]
[358540513,1745242239013,-500.0,0.00021999,2]
[358540514,1745242239022,-500.0,0.00021999,2]
[358540515,1745242239031,-500.0,0.00021999,2]
[358540516,1745242239039,-500.0,0.00021999,2]
[358540517,1745242239049,-500.0,0.00021999,2]
[358540518,1745242239058,-500.0,0.00021999,2]
[358540519,1745242239067,-500.0,0.00021999,2]
[358540520,1745242239076,-500.0,0.00021999,2]
[358540521,1745242239086,-500.0,0.00021999,2]
[358540522,1745242239095,-500.0,0.00021999,2]
[358540523,1745242239104,-500.0,0.00021999,2]
[358540524,1745242239113,-500.0,0.00021999,2]
[358540525,1745242239122,-614.73,0.00021999,2]
[358540526,1745242239131,-500.0,0.00021999,2]
[358540527,1745242239140,-500.0,0.00021999,2]
[358540528,1745242239151,-500.0,0.00021999,2]
[358540529,1745242239161,-500.0,0.00021999,2]
[358540530,1745242239170,-500.0,0.00021999,2]
[358540531,1745242239179,-333.78995562,0.00021999,2]
[358540532,1745242239188,-96848.22040648,0.00022,2]
[358540533,1745242239197,-500.0,0.00022235,2]
[358540534,1745242239207,-500.0,0.0002225,2]
[358540535,1745242239216,-500.0,0.00022272,2]
[358540536,1745242239226,-500.0,0.00022272,2]
[358540537,1745242239235,-2842.37,0.00022272,2]
[358540538,1745242239244,-744.66,0.00022272,2]
[358540539,1745242239254,-242.55,0.00022272,2]
[358540540,1745242239263,-175.16,0.00022273,2]
[358540541,1745242239272,-500.0,0.00022273,2]
[358540542,1745242239281,-500.0,0.00022273,2]
[358540543,1745242239290,-500.0,0.00022273,2]
[358540544,1745242239300,-500.0,0.00022273,2]
[358540545,1745242239310,-2667.39,0.00022273,2]
[358540546,1745242239320,-1121.15,0.00022273,2]
[358540547,1745242239330,-500.0,0.00022273,2]
[358540548,1745242239340,-500.0,0.00022273,2]
[358540549,1745242239350,-500.0,0.00022273,2]
[358540550,1745242239359,-500.0,0.00022273,2]
[358540551,1745242239369,-500.0,0.00022273,2]
[358540552,1745242239379,-500.0,0.00022273,2]
[358540553,1745242239389,-500.0,0.00022273,2]
[358540554,1745242239400,-444.79,0.00022273,2]
[358540555,1745242239410,-500.0,0.00022273,2]
[358540556,1745242239420,-500.0,0.00022273,2]
[358540557,1745242239430,-500.0,0.00022273,2]
[358540558,1745242239440,-500.0,0.00022273,2]
[358540559,1745242239565,-164.86626395,0.00022273,2]
[358540560,1745242239580,-500.0,0.00022273,2]
[358540561,1745242239589,-500.0,0.00022273,2]
[358540562,1745242239600,-388.87081666,0.00022273,2]
[358540563,1745242239609,-614.73,0.00022273,2]
[358540564,1745242239619,-500.0,0.00022273,2]
[358540565,1745242239629,-500.0,0.00022273,2]
[358540566,1745242239638,-500.0,0.00022352,2]
[358540567,1745242239650,-500.0,0.00022453,2]
[358540568,1745242239659,-500.0,0.00022546,2]
[358540569,1745242239668,-500.0,0.00022546,2]
[358540570,1745242239677,-2842.37,0.00022546,2]
[358540571,1745242239687,-744.66,0.00022546,2]
[358540572,1745242239697,-500.0,0.00022547,2]
[358540573,1745242239707,-500.0,0.00022547,2]
[358540574,1745242239717,-500.0,0.00022547,2]
[358540575,1745242239727,-500.0,0.00022547,2]
[358540576,1745242239738,-2667.39,0.00022547,2]
[358540577,1745242239747,-1121.15,0.00022547,2]
[358540578,1745242239756,-500.0,0.00022547,2]
[358540579,1745242239766,-234.23358787,0.00022547,2]
[358540580,1745242239776,-500.0,0.00022547,2]
[358540581,1745242239786,-273.33984595,0.00022547,2]
[358540582,1745242239796,-500.0,0.00022547,2]
[358540584,1745242239806,-500.0,0.00022547,2]
[358540586,1745242239816,-500.0,0.00022547,2]
[358540587,1745242239826,-500.0,0.00022547,2]
[358540588,1745242239836,-500.0,0.00022547,2]
[358540589,1745242239846,-500.0,0.00022547,2]
[358540590,1745242239856,-500.0,0.00022547,2]
[358540591,1745242239866,-500.0,0.00022547,2]
[358540592,1745242239876,-500.0,0.00022547,2]
[358540593,1745242239886,-614.73,0.00022547,2]
[358540594,1745242239897,-500.0,0.00022547,2]
[358540595,1745242239907,-500.0,0.00022547,2]
[358540596,1745242239916,-425.6940338,0.00022624,4]
[358540597,1745242239926,-160.0,0.00022735,2]
[358540599,1745242239935,-160.0,0.00022735,2]
[358540600,1745242239945,-420.65680271,0.00022736,2]
[358540601,1745242239956,-160.0,0.00022736,2]
[358540602,1745242239966,-500.0,0.0002275,2]
[358540603,1745242239975,-534.63,0.00022753,2]
[358540604,1745242239985,-500.0,0.00022753,2]
[358540605,1745242239995,-500.0,0.00022753,2]
[358540606,1745242240005,-500.0,0.00022753,2]
[358540607,1745242240015,-195.46819955,0.00022753,2]
[358540608,1745242240025,-500.0,0.00022753,2]
[358540609,1745242240034,-500.0,0.00022753,2]
[358540610,1745242240044,-500.0,0.00022753,2]
[358540611,1745242240053,-500.0,0.00022753,2]
[358540612,1745242240062,-500.0,0.00022753,2]
[358540613,1745242240071,-500.0,0.00022753,2]
[358540614,1745242240081,-500.0,0.00022753,2]
[358540615,1745242240090,-500.0,0.0002278,2]
[358540616,1745242240100,-500.0,0.0002282,2]
[358540617,1745242240109,-500.0,0.0002282,2]
[358540618,1745242240119,-2842.37,0.0002282,2]
[358540619,1745242240128,-744.66,0.0002282,2]
[358540620,1745242240137,-500.0,0.00022821,2]
[358540621,1745242240148,-500.0,0.00022821,2]
[358540622,1745242240157,-500.0,0.00022821,2]
[358540623,1745242240166,-500.0,0.00022821,2]
[358540624,1745242240176,-2667.39,0.00022821,2]
[358540625,1745242240185,-1121.15,0.00022821,2]
[358540626,1745242240195,-500.0,0.00022821,2]
[358540627,1745242240205,-500.0,0.00022821,2]
[358540628,1745242240215,-500.0,0.00022821,2]
[358540629,1745242240225,-500.0,0.00022821,2]
[358540630,1745242240234,-500.0,0.00022821,2]
[358540631,1745242240244,-500.0,0.00022821,2]
[358540633,1745242240253,-500.0,0.00022821,2]
[358540634,1745242240262,-500.0,0.00022821,2]
[358540635,1745242240271,-500.0,0.00022821,2]
[358540636,1745242240281,-500.0,0.00022821,2]
[358540637,1745242240290,-217.75400795,0.00022821,2]
[358540638,1745242240299,-614.73,0.00022821,2]
[358540639,1745242240309,-500.0,0.00022821,2]
[358540640,1745242240318,-500.0,0.00022821,2]
[358540641,1745242240328,-500.0,0.00022923,2]
[358540642,1745242240338,-500.0,0.00022923,2]
[358540643,1745242240347,-500.0,0.00022923,2]
[358540644,1745242240356,-500.0,0.00022923,2]
[358540645,1745242240366,-184.3107984,0.00022923,2]
[358540646,1745242240375,-500.0,0.00022923,2]
[358540647,1745242240384,-500.0,0.00022923,2]
[358540648,1745242240395,-500.0,0.00022923,2]
[358540649,1745242240404,-500.0,0.00022923,2]
[358540650,1745242240414,-500.0,0.00022923,2]
[358540651,1745242240423,-500.0,0.00022923,2]
[358540652,1745242240435,-500.0,0.00022923,2]
[358540653,1745242240444,-500.0,0.00022923,2]
[358540654,1745242240454,-1000.0,0.00022923,2]
[358540655,1745242240464,-500.0,0.00022923,2]
[358540656,1745242240473,-500.0,0.00022923,2]
[358540657,1745242240483,-500.0,0.00022923,2]
[358540658,1745242240492,-525.6,0.00022923,2]
[358540659,1745242240502,-500.0,0.00022923,2]
[358540661,1745242240511,-500.0,0.00022923,2]
[358540662,1745242240521,-500.0,0.00022923,2]
[358540663,1745242240530,-210.54495266,0.00022923,2]
[358540664,1745242240539,-500.0,0.00022923,2]
[358540665,1745242240549,-330.44492559,0.00022923,2]
[358540666,1745242240559,-500.0,0.00022923,2]
[358540667,1745242240568,-608.32,0.00022923,2]
[358540668,1745242240578,-500.0,0.00022923,2]
[358540669,1745242240590,-500.0,0.00022923,2]
[358540670,1745242240599,-639.66371813,0.00022923,2]
[358540671,1745242240609,-500.0,0.00022923,2]
[358540672,1745242240618,-500.0,0.00022923,2]
[358540673,1745242240630,-500.0,0.00022923,2]
[358540674,1745242240639,-500.0,0.00022923,2]
[358540675,1745242240649,-500.0,0.00022923,2]
[358540676,1745242240660,-500.0,0.00022923,2]
[358540677,1745242240669,-500.0,0.00022923,2]
[358540678,1745242240678,-500.0,0.00022923,2]
[358540679,1745242240688,-500.0,0.00022923,2]
[358540680,1745242240697,-500.0,0.00022923,2]
[358540681,1745242240706,-500.0,0.00022923,2]
[358540682,1745242240716,-500.0,0.00022923,2]
[358540683,1745242240725,-500.0,0.00022923,2]
[358540684,1745242240734,-634.41392106,0.00022923,2]
[358540685,1745242240744,-500.0,0.00022923,2]
[358540686,1745242240754,-500.0,0.00022923,2]
[358540687,1745242240764,-500.0,0.00022923,2]
[358540688,1745242240774,-500.0,0.00022923,2]
[358540689,1745242240783,-500.0,0.00022923,2]
[358540690,1745242240793,-500.0,0.00022923,2]
[358540691,1745242240803,-500.0,0.00022923,2]
[358540692,1745242240812,-500.0,0.00022923,2]
[358540693,1745242240821,-500.0,0.00022923,2]
[358540694,1745242240832,-500.0,0.00022923,2]
[358540695,1745242240842,-500.0,0.00022923,2]
[358540696,1745242240851,-500.0,0.00022923,2]
[358540697,1745242240861,-500.0,0.00022923,2]
[358540698,1745242240870,-500.0,0.00022923,2]
[358540699,1745242240880,-500.0,0.00022923,2]
[358540700,1745242240889,-500.0,0.00022923,2]
[358540701,1745242240899,-550.38,0.00022923,2]
[358540702,1745242240908,-500.0,0.00022923,2]
[358540703,1745242240918,-500.0,0.00022923,2]
[358540704,1745242240928,-500.0,0.00022923,2]
[358540705,1745242240938,-500.0,0.00022923,2]
[358540706,1745242240948,-500.0,0.00022923,2]
[358540707,1745242240958,-500.0,0.00022923,2]
[358540708,1745242240969,-500.0,0.00022923,2]
[358540709,1745242240979,-500.0,0.00022923,2]
[358540710,1745242240988,-500.0,0.00022923,2]
[358540711,1745242240998,-500.0,0.00022923,2]
[358540712,1745242241008,-500.0,0.00022923,2]
[358540713,1745242241018,-500.0,0.00022923,2]
[358540714,1745242241028,-500.0,0.00022923,2]
[358540715,1745242241037,-500.0,0.00022923,2]
[358540716,1745242241046,-638.43838026,0.00022923,2]
[358540717,1745242241056,-507.95008675,0.00022923,2]
[358540718,1745242241065,-500.0,0.00022923,2]
[358540719,1745242241074,-500.0,0.00022923,2]
[358540720,1745242241083,-500.0,0.00022923,2]
[358540721,1745242241093,-575.4553595,0.00022923,2]
[358540722,1745242241102,-500.0,0.00022923,2]
[358540723,1745242241112,-500.0,0.00022923,2]
[358540724,1745242241121,-500.0,0.00022923,2]
[358540725,1745242241130,-500.0,0.00022923,2]
[358540726,1745242241140,-500.0,0.00022923,2]
[358540727,1745242241150,-500.0,0.00022923,2]
[358540728,1745242241160,-500.0,0.00022923,2]
[358540729,1745242241170,-500.0,0.00022923,2]
[358540730,1745242241179,-500.0,0.00022923,2]
[358540731,1745242241188,-1243.43,0.00022923,2]
[358540732,1745242241198,-420.75450666,0.00022923,2]
[358540733,1745242241207,-1000.0,0.00022923,2]
[358540734,1745242241216,-500.0,0.00022923,2]
[358540735,1745242241226,-500.0,0.00022923,2]
[358540736,1745242241236,-500.0,0.00022923,2]